Cogmind - Beta 16 @@@ ROGUE MODE // 2025.11.04 @ 20:09:31 Player: Jay Result: Destroyed by C-40 Crusher with Compactor Performance ------------- Evolutions (3) 1500 Regions Visited (7) 1400 Robots Destroyed (36) 180 Value Destroyed (980) 980 Prototype IDs (2) 40 Alien Tech Used (0) 0 Bonus (57) 57 TOTAL SCORE: 4157 Bonus ------- Follower Combat Kills 57 Cogmind --------- Core Integrity 0/700 Matter 260/300 Energy 100/100 System Corruption 10% Temperature Cool (0) Movement Core (50) Location -7/Waste Parts ------- > --- POWER (3) -------- (None) > --- PROPULSION (2) --- (None) > --- UTILITY (4) ------ (None) > --- WEAPON (4) ------- (None) > --- INVENTORY (5) ---- Ion Cannon Peak State ------------ > --- POWER ------------ Micro Nuclear Core Light Angular Momentum Engine > --- PROPULSION ------- Light Treads Advanced Treads > --- UTILITY ---------- Improved Heat Sink Small Storage Unit Targeting Computer > --- WEAPON ----------- Heavy Laser Heavy Laser Heavy Laser Heavy Assault Rifle > --- INVENTORY -------- Light Ion Engine Deuterium Engine Light Deuterium Engine Micro Nuclear Core Light Treads Component Analysis Suite Shock Rifle Autogun [Rating: 34] Favorites ----------- Power Light Angular Momentum Engine Engine Light Angular Momentum Engine Power Core Micro Nuclear Core Propulsion Light Treads Treads Light Treads Leg Carbon-fiber Leg Utility Small Storage Unit Device Improved Heat Sink Storage Small Storage Unit Processor Targeting Computer Hackware Hacking Suite Weapon Heavy Assault Rifle Energy Gun Heavy Laser Ballistic Gun Heavy Assault Rifle Launcher Grenade Launcher Special Weapon Mining Laser Build | -11 -10 -10 -9 -9 -8 -7 -7 ------- Run | Yrd Mat Min Mat Min Mat Fac Was Slots Evolved 6 | . . . 2 . 2 2 . Power 2 | . . . . . 1 1 . Propulsion . | . . . . . . . . Utility 2 | . . . 1 . . 1 . Weapon 2 | . . . 1 . 1 . . Parts Attached 44 | 3 5 5 3 1 20 4 3 Power 13 | 1 . 1 . . 8 1 2 Engine 8 | 1 . 1 . . 4 1 1 Core 5 | . . . . . 4 . 1 Reactor . | . . . . . . . . Propulsion 9 | . 2 1 . . 3 2 1 Treads 6 | . 2 1 . . 3 . . Leg 3 | . . . . . . 2 1 Wheel . | . . . . . . . . Hover . | . . . . . . . . Flight . | . . . . . . . . Utility 7 | 1 1 1 2 . 1 1 . Device 3 | . . . 1 . 1 1 . Storage 2 | 1 . 1 . . . . . Processor 1 | . . . 1 . . . . Hackware 1 | . 1 . . . . . . Protection . | . . . . . . . . Artifact . | . . . . . . . . Weapon 15 | 1 2 2 1 1 8 . . Energy Gun 6 | . 1 1 . 1 3 . . Energy Cannon . | . . . . . . . . Ballistic Gun 7 | 1 1 . 1 . 4 . . Ballistic Cannon . | . . . . . . . . Launcher 1 | . . 1 . . . . . Special Weapon 1 | . . . . . 1 . . Impact Weapon . | . . . . . . . . Slashing Weapon . | . . . . . . . . Piercing Weapon . | . . . . . . . . Special Melee Weapon . | . . . . . . . . Unidentified Prototypes . | . . . . . . . . Parts Lost 14 | . 1 1 2 . 3 . 7 Power 2 | . . . . . . . 2 Propulsion 3 | . . . . . 1 . 2 Utility 2 | . . . 1 . . . 1 Weapon 7 | . 1 1 1 . 2 . 2 Highest Loss Streak 7 | . 1 1 1 . 3 . 7 To Critical Strikes . | . . . . . . . . Average Backups 6 | 3 6 7 6 4 7 6 5 Power 3 | . 2 3 3 3 3 2 1 Propulsion . | 1 . . . . . 1 1 Utility . | . . 2 . . . . . Weapon 2 | 1 2 2 2 1 2 3 2 Tool/Special . | . . . . . . . . Unused Backups 6 | . . 1 . . 2 1 2 Power 1 | . . . . . 1 . . Propulsion 2 | . . . . . . 1 1 Utility 1 | . . 1 . . . . . Weapon 2 | . . . . . 1 . 1 Tool/Special . | . . . . . . . . Average Slot Usage (%) 95 | . 82 100 95 100 99 99 61 Engine 13 | . 14 14 11 11 10 23 14 Core 3 | . . . . . 7 . . Treads 17 | . 15 28 22 22 18 9 . Device 6 | . . . . 11 8 14 9 Storage 10 | . 14 15 17 11 9 7 4 Processor 6 | . . . 11 11 9 7 4 Hackware 2 | . 11 12 . . . . . Energy Gun 14 | . 4 14 11 22 19 7 4 Ballistic Gun 14 | . 21 1 10 11 15 23 14 Launcher 2 | . . 11 10 . . . . Peak Build Rating 34 | 3 9 13 14 14 34 33 33 Average Rating 20 | 2 7 9 13 14 26 31 20 On Entrance 13 | . 3 9 11 13 14 24 33 Avg Prop Armor Cover (%) . | . . . . . . . . Naked Turns 30 | . . . . . . . 30 Heaviest Build 39 | 12 14 21 24 21 36 39 39 Greatest Support 42 | 3 40 40 40 40 42 42 30 Greatest Overweight (x) 5 | 3 4 . . . . 1 5 Average Overweight (x) . | 1 1 . . . . . . Largest Inventory Capacity 8 | 8 8 8 8 8 8 8 8 Average Capacity 7 | 7 8 8 8 8 8 8 7 Most Carried 8 | 5 8 8 7 5 8 8 8 Average Carried 6 | 4 6 7 5 4 7 6 5 Final Capacity 8 | 8 8 8 8 8 8 8 5 Final Carried 8 | 5 8 8 5 5 8 7 1 Class Distribution -------------------- 51% | Scavenger-Gunner 26% | Mutant 22% | Gunner Dominant Class ---------------- Mutant | -10/Materials Mutant | -10/Mines Gunner | -9/Materials Scavenger-Gunner | -9/Mines Scavenger-Gunner | -8/Materials Scavenger-Gunner | -7/Factory Scavenger-Gunner | -7/Waste Resources | -11 -10 -10 -9 -9 -8 -7 -7 ----------- Run | Yrd Mat Min Mat Min Mat Fac Was Matter Collected 1092 | 217 178 197 126 60 265 49 . Remotely . | . . . . . . . . Salvage Created 1177 | . 262 44 340 58 473 . . Parts 84 | . 21 1 21 1 40 . . Haulers Intercepted 2 | . . . 2 . . . . Recyclers Shooed . | . . . . . . . . Parts Field Recycled . | . . . . . . . . Retrieved Matter . | . . . . . . . . Parts Self-Destructed . | . . . . . . . . Prevented . | . . . . . . . . Parts Restored . | . . . . . . . . Kills | -11 -10 -10 -9 -9 -8 -7 -7 ------- Run | Yrd Mat Min Mat Min Mat Fac Was Combat Hostiles Destroyed 26 | . 5 1 10 1 9 . . Guns 18 | . 5 . 3 1 9 . . AOE 8 | . . 1 7 . . . . Classes Destroyed 11 | . 3 . 5 . 3 . . Worker 4 | . . . 2 . 2 . . Builder 1 | . 1 . . . . . . Tunneler 1 | . . . . . 1 . . Hauler 2 | . . . 2 . . . . Operator 2 | . 2 . . . . . . Swarmer 5 | . . . 3 . 2 . . Grunt 11 | . 5 1 5 . . . . Brawler 2 | . . . 1 1 . . . Duelist 1 | . . . 1 . . . . Sentry 5 | . . . . . 5 . . Specialist 2 | . . . . . 2 . . Best Kill Streak 8 | . 3 1 8 1 3 . . Combat Bots Only 6 | . 2 1 6 1 2 . . Max Kills in Single Turn 2 | . 1 1 2 1 1 . . Gunslinging . | . . . . . . . . Exploded 2 | . . 1 2 . . . . Melee . | . . . . . . . . Uniques/NPCs Destroyed . | . . . . . . . . Combat | -11 -10 -10 -9 -9 -8 -7 -7 -------- Run | Yrd Mat Min Mat Min Mat Fac Was Hostile Shots Fired 190 | . 42 13 53 7 56 . 19 Missed 53 | . 11 2 21 2 17 . . Hits 137 | . 31 11 32 5 39 . 19 Melee 19 | . . . . . . . 19 Projectile 118 | . 31 11 32 5 39 . . Critical Strikes 12 | . . 1 . . 2 . 9 Damage Taken 2753 | . 415 162 481 36 817 39 803 Core 1185 | . 74 73 126 . 168 13 731 Absorbed by Shields . | . . . . . . . . Regen/Repaired (Parts) 20 | . . . . . 20 . . Core Remaining (%) 69 | 100 . 41 . 68 69 . . Volleys Fired 78 | . 30 6 20 2 19 1 . Largest 4 | . 2 2 3 3 4 3 . Hottest 247 | . 70 80 103 113 247 69 . Shots Fired 200 | . 56 11 55 6 69 3 . Gun 184 | . 56 10 40 6 69 3 . Cannon . | . . . . . . . . Launcher 16 | . . 1 15 . . . . Special . | . . . . . . . . Kinetic 99 | . 50 4 20 2 20 3 . Thermal 85 | . 6 6 20 4 49 . . Explosive 16 | . . 1 15 . . . . Electromagnetic . | . . . . . . . . Robot Hit Streak 14 | . 10 5 9 4 14 2 . Robot Miss Streak 3 | . 3 1 2 1 2 1 . Penetration Max . | . . . . . . . . Secondary Targets 2 | . 1 . . . 1 . . Max Gunslinging Chain 1 | . 1 . . . 1 . . Shots Hit Robots 129 | . 38 8 35 5 41 2 . Core Hits 58 | . 14 3 21 2 18 . . Critical Kills . | . . . . . . . . Critical Parts Destroyed . | . . . . . . . . Critical Strikes 7 | . 1 . 4 . 2 . . Burn 7 | . 1 . 4 . 2 . . Melee Attacks . | . . . . . . . . Impact . | . . . . . . . . Slashing . | . . . . . . . . Piercing . | . . . . . . . . Sneak Attacks . | . . . . . . . . Combat Hostiles . | . . . . . . . . Follow-up Attacks . | . . . . . . . . Damage Inflicted 2317 | . 447 110 973 67 689 31 . Guns 1702 | . 447 86 382 67 689 31 . Cannons . | . . . . . . . . Explosions 615 | . . 24 591 . . . . Melee . | . . . . . . . . Ramming . | . . . . . . . . Kinetic 787 | . 383 10 181 29 153 31 . Thermal 915 | . 64 76 201 38 536 . . Explosive 615 | . . 24 591 . . . . Electromagnetic . | . . . . . . . . Impact . | . . . . . . . . Slashing . | . . . . . . . . Piercing . | . . . . . . . . Highest Corruption 10 | . . . . . 3 1 10 Average Corruption 2 | . . . . . 2 1 8 Corruption Purged . | . . . . . . . . Corruption Blocked . | . . . . . . . . Effects 13 | . . . . . 8 . 5 Message Errors 4 | . . . . . 3 . 1 Matter Fused 1 | . . . . . . . 1 Energy Discharges 1 | . . . . . 1 . . Parts Rejected 1 | . . . . . . . 1 Data Loss (minor) 2 | . . . . . 1 . 1 Data Loss (major) 1 | . . . . . 1 . . Misfires 1 | . . . . . 1 . . Alerts 1 | . . . . . 1 . . Misdirections 1 | . . . . . . . 1 Overload Shots . | . . . . . . . . Overflow Damage . | . . . . . . . . Projectiles . | . . . . . . . . Explosions . | . . . . . . . . Melee . | . . . . . . . . Knockbacks . | . . . . . . . . Impact . | . . . . . . . . Kinetic . | . . . . . . . . Secondary . | . . . . . . . . Self-Inflicted Damage 113 | . . 9 104 . . . . Shots 6 | . . 1 5 . . . . Rammed . | . . . . . . . . Targets Rammed . | . . . . . . . . Kicked . | . . . . . . . . Crushed . | . . . . . . . . Highest Temperature 527 | . 90 118 153 36 527 . . Average Temperature 96 | . 33 58 52 18 155 . . Received Heat Transfer 621 | . 228 96 156 6 135 . . Effects 2 | . . . . . 2 . . Shutdowns 2 | . . . . . 2 . . Siege Activations . | . . . . . . . . Martial Activations . | . . . . . . . . Shielding Activations . | . . . . . . . . Robots Disrupted . | . . . . . . . . Combat Hostiles . | . . . . . . . . Robots Corrupted . | . . . . . . . . Combat Hostiles . | . . . . . . . . Parts Fried . | . . . . . . . . Impact Corruptions . | . . . . . . . . Robots Melted . | . . . . . . . . Combat Hostiles . | . . . . . . . . Parts Melted 5 | . . 1 . . 4 . . Heat Transferred 2691 | . 259 222 888 99 1223 . . Parts Sabotaged . | . . . . . . . . Parts Stolen . | . . . . . . . . Parts Stripped . | . . . . . . . . Power Chain Reactions . | . . . . . . . . Alert | -11 -10 -10 -9 -9 -8 -7 -7 ------- Run | Yrd Mat Min Mat Min Mat Fac Was Maximum Alert Level 1 | . . . 1 . . . . Low Security (%) 96 | 100 100 100 57 100 100 100 100 Level 1 3 | . . . 42 . . . . Level 2 . | . . . . . . . . Level 3 . | . . . . . . . . Level 4 . | . . . . . . . . Level 5 . | . . . . . . . . High Security . | . . . . . . . . Max Security . | . . . . . . . . Peak Influence 265 | . 60 56 265 153 101 . . Initial 99 | . . 7 . 99 44 . . Average 36 | . 23 8 135 117 35 . . Influence Increases 974 | . 145 56 355 95 323 . . Destroy 0b10 Robot/C 580 | . 100 20 200 80 180 . . Destroy 0b10 Robot/NC 50 | . 15 . 20 . 15 . . Destroy Leader 154 | . 30 10 34 10 70 . . Allied During Kill 5 | . . . . 5 . . . Successful Hack 12 | . . . . . 12 . . Disable Machine 15 | . . . 15 . . . . Destroy Structure 98 | . . 11 86 . 1 . . Lose Combat Pursuer 60 | . . 15 . . 45 . . Influence Decreases 974 | . 125 76 100 236 437 . . Entered New Map 239 | . . 13 . 156 70 . . Time Decay 685 | . 115 63 80 60 367 . . Lost Part 30 | . 10 . 20 . . . . Lost Ally 20 | . . . . 20 . . . Squads Dispatched 14 | . 2 . 1 . 9 2 . Investigation 5 | . . . . . 4 1 . Extermination . | . . . . . . . . Reinforcement 6 | . 2 . 1 . 2 1 . Assault . | . . . . . . . . Garrison 3 | . . . . . 3 . . Intercept . | . . . . . . . . Searches Triggered . | . . . . . . . . Construction Impeded . | . . . . . . . . Haulers Reinforced . | . . . . . . . . Active Scanning Responses . | . . . . . . . . Cargo Convoy Interrupts . | . . . . . . . . Stealth | -11 -10 -10 -9 -9 -8 -7 -7 --------- Run | Yrd Mat Min Mat Min Mat Fac Was Distress Signals 6 | . 1 . 3 . 2 . . Communications Jammed . | . . . . . . . . Distress Signals . | . . . . . . . . Times Spotted 55 | . 11 3 15 6 13 1 6 Peak Tracking Total 7 | . 2 2 7 3 3 1 6 Tactical Retreats 4 | . . 1 . . 3 . . Traps | -11 -10 -10 -9 -9 -8 -7 -7 ------- Run | Yrd Mat Min Mat Min Mat Fac Was Traps Triggered 4 | . . . . . 3 1 . Indirectly . | . . . . . . . . Trap Hack Attempts . | . . . . . . . . Triggered . | . . . . . . . . Disarmed . | . . . . . . . . Reprogrammed . | . . . . . . . . Reused . | . . . . . . . . Traps Extracted . | . . . . . . . . Installed . | . . . . . . . . Triggered . | . . . . . . . . Machines | -11 -10 -10 -9 -9 -8 -7 -7 ---------- Run | Yrd Mat Min Mat Min Mat Fac Was Machines Disabled 1 | . . . 1 . . . . Max in Single Turn 1 | . . . 1 . . . . Machines Repaired . | . . . . . . . . Machines Dismantled . | . . . . . . . . Machines Sabotaged . | . . . . . . . . Overloaded Fab Kills . | . . . . . . . . Hacking | -11 -10 -10 -9 -9 -8 -7 -7 --------- Run | Yrd Mat Min Mat Min Mat Fac Was Machines Accessed 6 | . . . 1 . 4 1 . Terminals 3 | . . . 1 . 2 . . Fabricators . | . . . . . . . . Repair Stations 2 | . . . . . 1 1 . Recycling Units . | . . . . . . . . Scanalyzers 1 | . . . . . 1 . . Garrison Access . | . . . . . . . . Total Hacks 26 | . . . 3 . 21 2 . Successful 15 | . . . . . 15 . . Failed 11 | . . . 3 . 6 2 . Catastrophic 2 | . . . . . 1 1 . Database Lockouts . | . . . . . . . . Manual . | . . . . . . . . Terminals 12 | . . . 3 . 9 . . Fabricators . | . . . . . . . . Repair Stations 8 | . . . . . 6 2 . Recycling Units . | . . . . . . . . Scanalyzers 6 | . . . . . 6 . . Garrison Access . | . . . . . . . . Terminal Hacks 5 | . . . . . 5 . . Record 1 | . . . . . 1 . . Prototype ID Bank 1 | . . . . . 1 . . Dispatch Records 1 | . . . . . 1 . . Maintenance Status 1 | . . . . . 1 . . Transport Status 1 | . . . . . 1 . . Fabricator Hacks . | . . . . . . . . Repair Station Hacks 4 | . . . . . 4 . . Scan Component 3 | . . . . . 3 . . Repair 1 | . . . . . 1 . . Recycling Unit Hacks . | . . . . . . . . Scanalyzer 6 | . . . . . 6 . . Insert Component 3 | . . . . . 3 . . Analyze 3 | . . . . . 3 . . Garrison Access Hacks . | . . . . . . . . Unauthorized Hacks . | . . . . . . . . Terminals . | . . . . . . . . Fabricators . | . . . . . . . . Repair Stations . | . . . . . . . . Recycling Units . | . . . . . . . . Scanalyzers . | . . . . . . . . Garrison Access . | . . . . . . . . Data Cores Recovered . | . . . . . . . . Used . | . . . . . . . . Hacking Detections 5 | . . . 1 . 3 1 . Full Trace Events 3 | . . . . . 2 1 . Feedback Events 2 | . . . . . 1 1 . Corruption 2 | . . . . . 1 1 . Feedback Blocked . | . . . . . . . . Robot Schematics Acquired . | . . . . . . . . Robots Built . | . . . . . . . . Authchips . | . . . . . . . . Time . | . . . . . . . . Total Robot Build Rating . | . . . . . . . . Part Schematics Acquired 3 | . . . . . 3 . . Parts Built . | . . . . . . . . Authchips . | . . . . . . . . Time . | . . . . . . . . Total Part Build Rating . | . . . . . . . . Part Studies Acquired . | . . . . . . . . Parts Repaired 1 | . . . . . 1 . . Time 38 | . . . . . 38 . . Parts Recycled . | . . . . . . . . Recycled Matter . | . . . . . . . . Retrieved Matter . | . . . . . . . . Retrieved Components . | . . . . . . . . Parts Scanalyzed 3 | . . . . . 3 . . Part Schematics Acquired 3 | . . . . . 3 . . Parts Damaged . | . . . . . . . . Bothacking | -11 -10 -10 -9 -9 -8 -7 -7 ------------ Run | Yrd Mat Min Mat Min Mat Fac Was Used RIF Installer . | . . . . . . . . Robots Hacked . | . . . . . . . . Non-combat . | . . . . . . . . Combat . | . . . . . . . . Robot Hacks Applied . | . . . . . . . . Relay Couplers Released . | . . . . . . . . Fabnet Peak Effective % . | . . . . . . . . Robots Rewired . | . . . . . . . . Allies Hacked . | . . . . . . . . Hacks Repelled . | . . . . . . . . Allies | -11 -10 -10 -9 -9 -8 -7 -7 -------- Run | Yrd Mat Min Mat Min Mat Fac Was Total Allies 1 | . . . . 1 . . . Largest Group 1 | . . . . 1 . . . Highest-Rated Group 31 | . . . . 31 . . . Highest-Rated Ally 31 | . . . . 31 . . . Total Orders . | . . . . . . . . Ally Attacks 10 | . . . . 10 . . . Total Damage 146 | . . . . 146 . . . Kills 3 | . . . . 3 . . . Allies Corrupted . | . . . . . . . . Allies Melted . | . . . . . . . . Intel | -11 -10 -10 -9 -9 -8 -7 -7 ------- Run | Yrd Mat Min Mat Min Mat Fac Was Active Infowar (turns) . | . . . . . . . . Robot Analysis Total . | . . . . . . . . Derelict Logs Recovered . | . . . . . . . . Drone Launches . | . . . . . . . . Drone Recoveries . | . . . . . . . . Exploration | -11 -10 -10 -9 -9 -8 -7 -7 ------------- Run | Yrd Mat Min Mat Min Mat Fac Was Turns Passed 3032 | 60 332 364 255 124 1430 365 102 Spaces Moved 1578 | 37 125 194 114 63 791 190 64 Core 120 | 37 48 . . . . . 35 Treads 1375 | . 77 194 114 63 791 136 . Legs 83 | . . . . . . 54 29 Wheels . | . . . . . . . . Hover . | . . . . . . . . Flight . | . . . . . . . . Fastest Speed 50 | 50 160 160 160 160 152 152 50 Average Speed 158 | 139 186 160 160 160 155 162 131 Slowest Speed 300 | 200 250 160 160 160 165 190 300 Overloaded Moves . | . . . . . . . . Propulsion Burnouts . | . . . . . . . . Robots Hopped . | . . . . . . . . Potential Cave-ins . | . . . . . . . . Cave-ins Triggered . | . . . . . . . . Exploration Rate (%) 30 | 4 32 54 24 20 68 6 34 Regions Visited 7 Branch Regions 2 Pre-discovered Areas . | . . . . . . . . Known Exits Taken . | . . . . . . . . Unknown Exits Taken 6 | 1 1 1 1 1 1 . . Scrap Searched 1 | . . 1 . . . . . Spaces Dug . | . . . . . . . . Terrain Destroyed 121 | . . 11 110 . . . . Melee . | . . . . . . . . Projectile . | . . . . . . . . AOE 121 | . . 11 110 . . . . Terrain Rammed . | . . . . . . . . Walls Destroyed . | . . . . . . . . Machines Disabled . | . . . . . . . . Actions | -11 -10 -10 -9 -9 -8 -7 -7 --------- Run | Yrd Mat Min Mat Min Mat Fac Was Total 1949 | 45 168 237 143 82 947 246 81 Wait 188 | . 1 26 7 16 81 45 12 Move 1572 | 36 124 193 113 62 790 190 64 Hop . | . . . . . . . . Pick Up 38 | 6 8 3 . 1 16 3 1 Fast Attach 15 | 2 . 2 . . 10 1 . Attach 28 | 1 5 2 3 1 9 3 4 Detach . | . . . . . . . . Swap 4 | . . 1 . . 3 . . Drop 26 | . . 4 . . 19 3 . Fire 78 | . 30 6 20 2 19 1 . Melee . | . . . . . . . . Ram . | . . . . . . . . Kick . | . . . . . . . . Crush . | . . . . . . . . Escape Stasis . | . . . . . . . . Rewire . | . . . . . . . . Trap . | . . . . . . . . Miscellaneous . | . . . . . . . . Route ------- -11/Scrapyard -10/Materials -10/Mines -9/Materials -9/Mines -8/Materials -7/Factory -7/Waste History --------- Turn | Location | Event 5 | -11/Scrapyard | Discovered new exit (range 15) 61 | -11/Scrapyard | Entered Materials 318 | -10/Materials | Build established: Mutant 346 | -10/Materials | Discovered new exit (range 8) 393 | -10/Materials | Entered Mines 671 | -10/Mines | Joined a pair of Derelicts in attacking an 0b10 outpost 673 | -10/Mines | Core integrity fell below 50% 733 | -10/Mines | Discovered new exit (range 16) 757 | -10/Mines | Entered Materials 757 | -9/Materials | Evolved 2 slots: Utility x1, Weapon x1 972 | -9/Materials | Discovered new exit (range 16) 1012 | -9/Materials | Entered Mines 1015 | -9/Mines | Received a Mining Laser from a helpful Derelict 1125 | -9/Mines | Discovered new exit (range 7) 1136 | -9/Mines | Entered Materials 1136 | -8/Materials | Evolved 2 slots: Power x1, Weapon x1 1333 | -8/Materials | Build established: Scavenger-Gunner 1611 | -8/Materials | Lost 3 parts (1n2w) 1740 | -8/Materials | Build established: Gunner 1903 | -8/Materials | Garrison activated, responded to threat 1972 | -8/Materials | Repaired Imp. Heat Sink 2152 | -8/Materials | Build established: Scavenger-Gunner 2167 | -8/Materials | Met 7R-MNS 2557 | -8/Materials | Discovered new exit (range 4) 2566 | -8/Materials | Entered Factory 2566 | -7/Factory | Evolved 2 slots: Power x1, Utility x1 2567 | -7/Factory | Caught up to 7R-MNS 2931 | -7/Factory | Sucked down chute 2931 | -7/Factory | Entered Waste 2946 | -7/Waste | EMP discharged 2946 | -7/Waste | System corruption reached 10% 2950 | -7/Waste | Spotted C-40 Crusher 2955 | -7/Waste | Spotted C-40 Crusher 2974 | -7/Waste | Spotted C-40 Crusher 2983 | -7/Waste | Spotted C-40 Crusher 2986 | -7/Waste | Spotted C-40 Crusher 2992 | -7/Waste | Crushed by Compactor (1 part destroyed, 2 dropped) 2993 | -7/Waste | Crushed by Compactor (1 part destroyed, 1 dropped) 2996 | -7/Waste | Crushed by Compactor (1 part destroyed, 2 dropped) 2996 | -7/Waste | Spotted C-40 Crusher 2999 | -7/Waste | Crushed by Compactor (1 part destroyed, 2 dropped) 3001 | -7/Waste | Crushed by Compactor (1 part destroyed, 1 dropped) 3005 | -7/Waste | Crushed by Compactor (1 part destroyed, 1 dropped) 3020 | -7/Waste | Core integrity fell below 50% 3028 | -7/Waste | Core integrity fell below 20% 3033 | -7/Waste | Destroyed by C-40 Crusher with Compactor Last Messages --------------- 02996_ Hvy. Assault Rifle crushed. 02996_ Imp. Heat Sink crushed. 02996_ Imp. Ion Engine crushed. 02999_ Imp. Heat Sink crushed. 02999_ Hvy. Laser crushed. 02999_ Sml. Storage Unit crushed. 02999_ Component Analysis Suite crushed. 03001_ Carbon-fiber Leg crushed. 03002_ Component Analysis Suite crushed. 03005_ Lgt. Deuterium Engine crushed. 03005_ Mic. Nuclear Core crushed. 03006_ Carbon-fiber Leg crushed. 03008_ Mic. Nuclear Core crushed. 03010_ Carbon-fiber Leg crushed. 03012_ Hvy. Assault Rifle crushed. 03012_ Sml. Storage Unit crushed. 03013_ NHKRVSJ&M#EKTW6EV 03029_ System corrupted: Component data lost. Map ----- +----------------------------------------------------+ | ?????????????????????????????????????????????????? | | ?????????????????????????????????????????????????? | | ?????????????????????????????????????????????????? | | ?????????????????????????????????????????????????? | | ?????????????????????????????????????????????????? | | ?????????????????????????????????????????????????? | | ?????????????????????????????????????????????????? | | ?????????????????????????????????????????????????? | | ?????????????????????????????????????????????????? | | ???????????????????##########????????????????????? | | ???????????????????# #????????????????????? | | ???????????????????# #????????????????????? | | ???????????????????# #????????????????????? | | ???????????????????# #????????????????????? | | ???????????????????# #????????????????????? | | ???????????????????# #????????????????????? | | ???????????????????# #????????????????????? | | ?????????######????# #????????????????????? | | ?????????# #????### ###????????????????????? | | ?????????# #??????# CC#??????????????????????? | | ?????????# #??????# CC#??????????????????????? | | ?????????# #??????# CC#??????????????????????? | | ???????### ######## CC#??????????????????????? | | ???????# CC CC #??????????????????????? | | ???????# CC CC #??????????????????????? | | ???????# CC @#??????????????????????? | | ???????# CC CC #??????????????????????? | | ???????### ######## CC #??????????????????????? | | #######??# #??????# #??????????????????????? | | #??# #??????# #??????????????????????? | | #??# #??????# #??????????????????????? | | #### ######## #??????????????????????? | | ??????????????????????? | | ?????????????????????? | | ????????????????????? | | ????????????????????? | | #### ######## ###????????????????????? | | #??# #??????# #??????????????????????? | | #??# #??????# #??????????????????????? | | #######??# #??????# #??????????????????????? | | ?????????# #??????? ???????????????????????? | | ????????? #??????????????????????????????????? | | ????????? #??????????????????????????????????? | | ????????? #??????????????????????????????????? | | ????????? #??????????????????????????????????? | | ?????????# #??????????????????????????????????? | | ?????????? #??????????????????????????????????? | | ?????????? #??????????????????????????????????? | | ?????????? #??????????????????????????????????? | | ?????????? ????????????????????????????????????? | +----------------------------------------------------+ Best States ------------- Heat Dissipation 48 Energy Generation 28 Energy Capacity 465 Matter Stores 400 Matter Capacity 400 Sight Range 16 Terrain Scan Density 10 Evasion (%) 50 Targeting Accuracy 5 Recoil Reduction 2 Offensive Hacking 10 Item Schematics ----------------- Lgt. Deuterium Engine | -8/Materials | Scanalyzed Lgt. Treads | -8/Materials | Scanalyzed Hvy. Assault Rifle | -8/Materials | Scanalyzed Robot Schematics ------------------ None Fabricated ------------ Nothing Repaired ---------- Imp. Heat Sink | 50% | -8/Materials Studied --------- None Alien Tech Used ----------------- None Achievements -------------- Well Done Challenges ------------ None Game ------ Seed LinearPulseBlaster Manual? 0 Play Time 00:38:51 Cumulative 53.7 hours Start 2025.10.30 @ 20:10:31 End 2025.11.04 @ 20:09:31 Sessions 3 Manual Loads 0 Difficulty Rogue Special Mode None Game No. 99 Rogue 87 Adventurer 12 Explorer 0 Win Type - Total 0 Types 0/0/0/0/0/0/0/0/0/0 Lore% 10 Gallery% 23 Achievement% 12 Wizard Run 0 Options --------- Layout 0 ASCII 0 Keyboard 0 Movement Mouse Keybinds 0 Fullscreen 2 Font 18/SmallcapsGlow Map View 38x25 Zoom Use 92% Tactical HUD 1 Map Filters NONE Filters NONE Steam 1 RUN: a7da8a0c-a2ff-4db3-8976-472a9ac0b9a6